bitfinex/quotes_BTCUSD_20250723
["timestamp","ask_amount","ask_price","bid_price","bid_amount"]
[1753276023471,0.09618605,118230.0,118220.0,0.34539151]
[1753276023687,0.08772818,118230.0,118220.0,0.34539151]
[1753276024104,0.08872818,118230.0,118220.0,0.34439151]
[1753276024316,0.09818591,118230.0,118220.0,0.34439151]
[1753276024518,0.09818591,118230.0,118220.0,0.34439165]
[1753276024758,0.09818591,118230.0,118220.0,0.35284995]
[1753276024978,0.28426367,118230.0,118220.0,0.33593321]
[1753276025186,0.28426367,118230.0,118220.0,0.34439165]
[1753276025329,0.27580558,118230.0,118220.0,0.34439165]
[1753276025541,0.17768,118190.0,118180.0,0.025409]
[1753276025772,0.17768,118190.0,118140.0,0.0004]
[1753276025773,0.19466692,118150.0,118140.0,0.0004]
[1753276025983,0.01061331,118150.0,118140.0,0.33808951]
[1753276026194,0.00215,118150.0,118140.0,0.35501778]
[1753276026402,0.15,118160.0,118150.0,0.18620375]
[1753276026602,0.15,118160.0,118150.0,0.34920728]
[1753276026843,0.17773994,118150.0,118140.0,0.0004]
[1753276027075,0.18917361,118150.0,118140.0,0.0004]
[1753276027325,0.18917361,118150.0,118140.0,0.14976]
[1753276027526,0.18917361,118150.0,118140.0,0.15476]
[1753276027739,0.18071001,118150.0,118140.0,0.14976]
[1753276027953,0.18071001,118150.0,118140.0,0.14972]
[1753276028378,0.18917375,118150.0,118140.0,0.15072]
[1753276028639,0.1976372,118150.0,118140.0,0.15072]
[1753276028869,0.1976372,118150.0,118140.0,0.0014]
[1753276029071,0.18917375,118150.0,118140.0,0.1506]
[1753276029285,0.18071008,118150.0,118140.0,0.1506]
[1753276029483,0.18286008,118150.0,118140.0,0.1506]
[1753276029919,0.18286008,118150.0,118140.0,0.0014]
[1753276030134,0.5996563,118150.0,118140.0,0.15076]
[1753276030341,1.1741336,118150.0,118140.0,0.15076]
[1753276030764,1.1741336,118150.0,118140.0,1e-08]
[1753276030975,1.52962039,118150.0,118140.0,1e-08]
[1753276031194,1.52962039,118150.0,118130.0,0.15004]
[1753276031195,0.87875506,118140.0,118130.0,0.15004]
[1753276031409,0.96835236,118140.0,118130.0,0.15004]
[1753276031627,1.32383915,118140.0,118130.0,0.15004]
[1753276032070,6.37383915,118140.0,118130.0,0.0004]
[1753276032291,6.39128817,118140.0,118130.0,0.0004]
[1753276033420,6.03880138,118140.0,118130.0,0.0004]
[1753276033630,0.97135236,118140.0,118130.0,0.14984]
[1753276034296,0.67135236,118140.0,118130.0,0.14984]
[1753276034519,0.82135236,118140.0,118130.0,0.14984]
[1753276034751,0.82535236,118140.0,118130.0,0.14984]
[1753276037224,0.82535236,118140.0,118130.0,0.0004]
[1753276037432,0.76435236,118140.0,118130.0,0.14948]
[1753276038107,0.79765236,118140.0,118130.0,0.14948]
[1753276038317,0.82915236,118140.0,118130.0,0.14948]
[1753276038734,0.77281667,118140.0,118130.0,0.169705]
[1753276038942,0.63128113,118140.0,118130.0,0.34418024]
[1753276039157,0.78974566,118140.0,118130.0,0.35264513]
[1753276039363,0.26901996,118140.0,118130.0,0.36309987]
[1753276039576,0.09994118,118140.0,118130.0,0.36309987]
[1753276039785,0.01546388,118140.0,118130.0,0.36628987]
[1753276039999,0.007,118140.0,118130.0,0.72177666]
[1753276040274,0.007,118140.0,118130.0,0.36628987]
[1753276040489,0.007,118140.0,118130.0,0.72177666]
[1753276040918,0.004,118140.0,118130.0,0.80122568]
[1753276041128,0.17588105,118160.0,118150.0,0.19466692]
[1753276041347,0.17588048,118160.0,118150.0,0.34944692]
[1753276041778,0.17803041,118160.0,118150.0,0.34625692]
[1753276042187,0.00049277,118160.0,118150.0,0.34944692]
[1753276042406,0.00449277,118160.0,118150.0,0.70477371]
[1753276042614,0.00249277,118160.0,118150.0,0.70477371]
[1753276042857,0.00249277,118160.0,118150.0,0.19984692]
[1753276043065,0.00449277,118160.0,118150.0,0.70473371]
[1753276043478,0.00449277,118160.0,118150.0,0.76763371]
[1753276043886,0.00249277,118160.0,118150.0,0.76763371]
[1753276044312,0.00149277,118160.0,118150.0,0.76763371]
[1753276044539,0.00149277,118160.0,118150.0,0.45880021]
[1753276044761,0.00249277,118160.0,118150.0,0.814287]
[1753276045184,0.00249277,118160.0,118150.0,0.76763371]
[1753276045560,0.00249277,118160.0,118150.0,0.72016003]
[1753276045760,0.00249277,118160.0,118150.0,0.36467324]
[1753276045967,0.00249277,118160.0,118150.0,0.72016003]
[1753276046156,0.00249277,118160.0,118150.0,0.86912003]
[1753276046390,0.00249277,118160.0,118150.0,0.95359733]
[1753276047037,0.00149277,118160.0,118150.0,0.59811054]
[1753276047241,0.00149277,118160.0,118150.0,0.95359733]
[1753276047453,0.00049277,118160.0,118150.0,0.95359733]
[1753276047672,0.00049277,118160.0,118150.0,1.59249733]
[1753276047893,0.00049277,118160.0,118150.0,1.59349733]
[1753276048089,0.00049277,118160.0,118150.0,1.94898412]
[1753276048302,1e-08,118160.0,118150.0,1.94898412]
[1753276048523,1e-08,118160.0,118150.0,1.59349733]
[1753276049177,1e-08,118160.0,118150.0,1.59249733]
[1753276049390,1e-08,118160.0,118150.0,1.59849733]
[1753276050003,0.03291965,118190.0,118180.0,0.1946175]
[1753276050214,0.04225153,118190.0,118180.0,0.34346469]
[1753276050449,0.02625298,118190.0,118180.0,0.39642705]
[1753276050646,0.0347135,118190.0,118180.0,0.34561469]
[1753276050857,0.03471343,118190.0,118180.0,0.34561469]
[1753276051055,0.02625298,118190.0,118180.0,0.34561469]
[1753276051260,0.01666268,118190.0,118180.0,0.34869469]
[1753276051694,0.03771358,118190.0,118180.0,0.34561469]
[1753276051903,0.05463497,118190.0,118180.0,0.33711353]
[1753276052107,0.04617417,118190.0,118180.0,0.34557469]
[1753276052318,0.05463497,118190.0,118180.0,0.34557469]
[1753276052662,0.0546349,118190.0,118180.0,0.34557469]
[1753276052903,0.02925298,118190.0,118180.0,0.34557469]
[1753276053098,0.03771343,118190.0,118180.0,0.34557469]
[1753276053303,0.02925298,118190.0,118180.0,0.34557469]
[1753276053499,0.02925298,118190.0,118180.0,0.34865469]
[1753276053500,0.01866268,118190.0,118180.0,0.34865469]
[1753276053762,0.02712306,118190.0,118180.0,0.34865469]
[1753276053926,0.04617431,118190.0,118180.0,0.34557476]
[1753276054214,0.03771358,118190.0,118180.0,0.35403592]
[1753276054783,0.02925306,118190.0,118180.0,0.35403592]
[1753276054990,0.04617424,118190.0,118180.0,0.35403592]
[1753276055217,0.23231497,118190.0,118180.0,0.19681476]
[1753276055431,0.23231497,118190.0,118180.0,0.33460353]
[1753276055432,0.36843407,118190.0,118180.0,0.33460353]
[1753276055640,0.19075372,118190.0,118180.0,0.35152592]
[1753276055848,0.17925313,118190.0,118180.0,0.36213758]
[1753276056483,0.01866268,118190.0,118180.0,0.41866285]
[1753276057129,0.003,118190.0,118180.0,0.83614964]
[1753276058235,0.002,118190.0,118180.0,0.83614964]
[1753276058417,0.16691796,118210.0,118200.0,0.19458457]
[1753276058663,0.18472955,118210.0,118200.0,0.34533457]
[1753276058885,0.03472955,118210.0,118200.0,0.34533457]
[1753276059133,0.16568159,118210.0,118200.0,0.40186875]
[1753276059350,0.16568159,118210.0,118200.0,0.55161457]
[1753276059991,0.16568159,118210.0,118200.0,1.05447866]
[1753276059992,0.01568159,118210.0,118200.0,1.05447866]
[1753276060215,0.01568159,118210.0,118200.0,1.07192768]
[1753276061112,0.01768159,118210.0,118200.0,1.07192768]
[1753276061568,0.01768159,118210.0,118200.0,0.61447457]
[1753276061800,0.01568159,118210.0,118200.0,0.61447457]
[1753276062012,0.01568159,118210.0,118200.0,1.05002154]
[1753276062647,0.01568159,118210.0,118200.0,0.96996136]
[1753276063298,0.01568159,118210.0,118200.0,0.61447457]
[1753276064780,0.01568159,118210.0,118200.0,0.96996136]
[1753276066091,0.01568159,118210.0,118200.0,1.07188768]
[1753276066525,0.01568159,118210.0,118200.0,1.09738026]
[1753276067202,0.01568159,118210.0,118200.0,1.09706026]
[1753276068070,0.01568159,118210.0,118200.0,0.74157347]
[1753276068272,0.01568159,118210.0,118200.0,1.09706026]
[1753276068873,0.01568159,118210.0,118200.0,1.18153756]
[1753276071981,0.01568159,118210.0,118200.0,1.87702435]
[1753276072190,0.32841075,118240.0,118230.0,0.19453519]
[1753276072191,0.32841083,118240.0,118230.0,0.19453519]
[1753276072392,0.16786305,118240.0,118230.0,0.34432519]
[1753276072601,0.16786305,118240.0,118230.0,0.70289198]
[1753276072602,0.01573305,118240.0,118230.0,0.70289198]
[1753276072801,0.01573305,118240.0,118230.0,0.75147886]
[1753276073011,0.01573305,118240.0,118230.0,0.70289198]
[1753276073228,0.01873305,118240.0,118230.0,0.34740519]
[1753276073455,0.01873305,118240.0,118230.0,0.34433238]
[1753276073456,0.03777679,118240.0,118230.0,0.34433238]
[1753276073865,0.03477679,118240.0,118230.0,0.34433238]
[1753276074072,0.01986305,118240.0,118230.0,0.34433238]
[1753276074293,0.02831992,118240.0,118230.0,0.34433238]
[1753276074731,0.01986305,118240.0,118230.0,0.34433238]
[1753276074937,0.02386305,118240.0,118230.0,0.34433238]
[1753276075134,0.03231978,118240.0,118230.0,0.34433238]
[1753276075297,0.02831978,118240.0,118230.0,0.34433238]
[1753276075496,0.03777665,118240.0,118230.0,0.34433238]
[1753276075769,0.05469089,118240.0,118230.0,0.3359148]
[1753276075974,0.05469089,118240.0,118230.0,0.34222238]
[1753276076176,0.04623366,118240.0,118230.0,0.34222238]
[1753276076298,0.05469089,118240.0,118230.0,0.34222238]
[1753276076505,0.04623373,118240.0,118230.0,0.34222238]
[1753276076714,0.04623366,118240.0,118230.0,0.34222238]
[1753276077112,0.05469082,118240.0,118230.0,0.34222238]
[1753276077319,0.06314805,118240.0,118230.0,0.34222238]
[1753276077532,0.05469074,118240.0,118230.0,0.34222238]
[1753276077921,0.05469074,118240.0,118230.0,0.34202238]
[1753276078211,0.05269074,118240.0,118230.0,0.34202238]
[1753276078450,0.01886305,118240.0,118230.0,0.34202238]
[1753276078645,0.02731978,118240.0,118230.0,0.34202238]
[1753276078862,0.02731978,118240.0,118230.0,0.34410238]
[1753276079069,0.04423388,118240.0,118230.0,0.34410238]
[1753276079279,0.04423373,118240.0,118230.0,0.34410238]
[1753276079564,0.02831978,118240.0,118230.0,0.34410238]
[1753276079762,0.03677665,118240.0,118230.0,0.34410238]
[1753276079979,0.04523359,118240.0,118230.0,0.34410238]
[1753276080194,0.05369075,118240.0,118230.0,0.34410238]
[1753276080411,0.77945179,118240.0,118230.0,4.719e-05]
[1753276080622,1.20392909,118240.0,118230.0,4.719e-05]
[1753276080851,1.20392909,118240.0,118230.0,0.14724719]
[1753276081065,1.23048173,118240.0,118230.0,0.14724719]
[1753276081271,1.38048173,118240.0,118230.0,0.14724719]
[1753276081474,1.35292909,118240.0,118230.0,0.14724719]
[1753276081930,6.55292909,118240.0,118230.0,4.719e-05]
[1753276082351,6.55292909,118240.0,118230.0,0.14752719]
[1753276083876,6.1974286,118240.0,118230.0,0.14752719]
[1753276084083,1.0004286,118240.0,118230.0,0.14752719]
[1753276084749,0.9994286,118240.0,118230.0,0.14752719]
[1753276084971,1.0014286,118240.0,118230.0,0.14752719]
[1753276085417,0.9994286,118240.0,118230.0,0.14752719]
[1753276085903,1.35491539,118240.0,118230.0,0.14752719]
[1753276086120,6.40491539,118240.0,118230.0,0.14748719]
[1753276086338,6.0494286,118240.0,118230.0,0.14748719]
[1753276086557,5.7534286,118240.0,118230.0,0.14748719]
[1753276086773,6.0534286,118240.0,118230.0,0.14748719]
[1753276087210,6.40891539,118240.0,118230.0,0.14748719]
[1753276087426,6.0534286,118240.0,118230.0,0.14748719]
[1753276087638,6.0534286,118240.0,118230.0,0.14740719]
[1753276087847,6.40891539,118240.0,118230.0,0.14740719]
[1753276088055,6.41676041,118240.0,118230.0,0.1372477]
[1753276088925,6.06127362,118240.0,118230.0,0.1372477]
[1753276089075,6.0534286,118240.0,118230.0,0.1372477]
[1753276089496,6.40891539,118240.0,118230.0,0.1372477]
[1753276092385,6.40883502,118240.0,118230.0,0.1372477]
[1753276092736,1.00334823,118240.0,118230.0,0.1372477]
[1753276093533,0.85334823,118240.0,118230.0,0.1372477]
[1753276093733,0.33609278,118220.0,118210.0,0.17764768]
[1753276093895,0.67816321,118220.0,118210.0,0.32493489]
[1753276094101,0.52462565,118220.0,118210.0,0.34393314]
[1753276094304,0.53308424,118220.0,118210.0,0.34393314]
[1753276094505,0.71071908,118220.0,118210.0,0.34697314]
[1753276094716,0.71917788,118220.0,118210.0,0.34697314]
[1753276094919,0.71071965,118220.0,118210.0,0.32701489]
[1753276095130,0.70425125,118220.0,118210.0,0.33547419]
[1753276095335,0.69062223,118220.0,118210.0,0.34393342]
[1753276095736,0.51298732,118220.0,118210.0,0.35239244]
[1753276095931,0.51298688,118220.0,118210.0,0.35239244]
[1753276096153,0.5278337,118220.0,118210.0,0.35543244]
[1753276096357,0.52783363,118220.0,118210.0,0.35543244]
[1753276096555,0.51937504,118220.0,118210.0,0.35543244]
[1753276098190,0.52783363,118220.0,118210.0,0.35543244]
[1753276098614,0.51937512,118220.0,118210.0,0.35543244]
[1753276098830,0.36091653,118220.0,118210.0,0.38543244]
[1753276099043,0.36937504,118220.0,118210.0,0.41643244]
[1753276099253,0.36091653,118220.0,118210.0,0.41643244]
[1753276099475,0.36091646,118220.0,118210.0,0.41643244]
[1753276099687,0.004,118220.0,118210.0,0.41643244]
[1753276099921,0.004,118220.0,118210.0,0.77191923]
[1753276100565,0.004,118220.0,118210.0,0.41643244]
[1753276100766,0.002,118220.0,118210.0,0.41643244]
[1753276102335,0.002,118220.0,118210.0,0.71533244]
[1753276102758,0.42537297,118230.0,118220.0,0.19455165]
[1753276103022,0.40845751,118230.0,118220.0,0.19967165]
[1753276103265,0.4,118230.0,118220.0,0.19967165]
[1753276103497,0.55,118230.0,118220.0,0.22977165]
[1753276103994,0.551,118230.0,118220.0,0.22977165]
[1753276104443,0.551,118230.0,118220.0,0.26197165]
[1753276104674,0.89945758,118230.0,118220.0,0.26197165]
[1753276104936,0.89945751,118230.0,118220.0,0.26197165]
[1753276105197,0.90791524,118230.0,118220.0,0.26197165]
[1753276105433,0.91637304,118230.0,118220.0,0.26197165]
[1753276105632,0.90791517,118230.0,118220.0,0.19967165]
[1753276106094,0.492,118230.0,118220.0,0.26157165]
[1753276106782,0.002,118230.0,118220.0,0.26157165]
[1753276107244,0.002,118230.0,118220.0,0.32106816]
[1753276107460,0.002,118230.0,118220.0,0.26157165]
[1753276108163,0.01045751,118230.0,118220.0,0.26157165]
[1753276108579,0.002,118230.0,118220.0,0.26157165]
[1753276109060,0.01045744,118230.0,118220.0,0.26157165]
[1753276109263,0.01891495,118230.0,118220.0,0.26157165]
[1753276109703,0.002,118230.0,118220.0,0.26157165]
[1753276111194,0.002,118230.0,118220.0,0.61705844]
[1753276111825,0.002,118230.0,118220.0,0.91595844]
[1753276112265,0.002,118230.0,118220.0,0.56047165]
[1753276115735,0.002,118230.0,118220.0,0.91595844]
[1753276116159,0.002,118230.0,118220.0,0.56047165]
[1753276116371,0.002,118230.0,118220.0,1.00043574]
[1753276117315,0.001,118230.0,118220.0,1.08491304]
[1753276117530,0.34,118250.0,118240.0,0.22691874]
[1753276117749,0.1584553,118260.0,118250.0,0.19450251]
[1753276117960,0.35691074,118260.0,118250.0,0.20503866]
[1753276118369,0.35691074,118260.0,118250.0,0.20825866]
[1753276118582,0.54294115,118260.0,118250.0,0.19134628]
[1753276118793,0.54294115,118260.0,118240.0,0.16914749]
[1753276118794,0.19450244,118250.0,118240.0,0.16914749]
[1753276119005,0.0084568,118240.0,118230.0,0.18606456]
[1753276119236,0.19131159,118240.0,118230.0,4.721e-05]
[1753276119446,0.19131159,118240.0,118230.0,0.14520721]
[1753276119447,0.18285465,118240.0,118230.0,0.14520721]
[1753276119659,0.17439749,118240.0,118230.0,0.14520721]
[1753276119873,0.32439749,118240.0,118230.0,0.14520721]
[1753276120080,1.16756158,118240.0,118230.0,4.721e-05]
[1753276120310,1.34411422,118240.0,118230.0,4.721e-05]
[1753276120535,1.34511422,118240.0,118230.0,0.14512721]
[1753276120749,1.37824224,118240.0,118230.0,0.14512721]
[1753276120977,6.45608794,118240.0,118230.0,0.14512721]
[1753276121410,6.55608741,118240.0,118230.0,0.14512721]
[1753276121637,6.57954118,118240.0,118230.0,0.14512721]
[1753276121856,6.57954118,118240.0,118230.0,4.721e-05]
[1753276122719,6.57854118,118240.0,118230.0,4.721e-05]
[1753276123014,6.58054118,118240.0,118230.0,4.721e-05]
[1753276123483,6.57854118,118240.0,118230.0,4.721e-05]
[1753276123724,1.14354223,118220.0,118210.0,0.14504]
[1753276123957,1.14354223,118220.0,118170.0,0.18936522]
[1753276123958,0.16692297,118180.0,118170.0,0.18617188]
[1753276124237,0.52589565,118180.0,118170.0,0.32276]
[1753276124456,0.52589565,118180.0,118170.0,0.34176397]
[1753276124457,0.50897247,118180.0,118170.0,0.34176397]
[1753276124669,0.50897247,118180.0,118170.0,0.32484]
[1753276124670,0.68666736,118180.0,118170.0,0.32484]
[1753276124893,0.6814062,118180.0,118170.0,0.31429769]
[1753276125111,0.6814062,118180.0,118170.0,0.14505]
[1753276125334,0.67294489,118180.0,118170.0,0.32275993]
[1753276125546,0.6814062,118180.0,118170.0,0.33222202]
[1753276125973,0.50897283,118180.0,118170.0,0.34276397]
[1753276126188,1.09533182,118180.0,118170.0,0.34276397]
[1753276126617,0.91763693,118180.0,118170.0,0.34176397]
[1753276126841,0.89,118180.0,118170.0,0.35344585]
[1753276127057,0.89,118180.0,118170.0,0.77073264]
[1753276127058,0.55,118180.0,118170.0,0.77073264]
[1753276127276,0.1669224,118180.0,118170.0,0.41524585]
[1753276127487,0.16692232,118180.0,118170.0,0.41524585]
[1753276127701,0.16692232,118180.0,118170.0,0.35344585]
[1753276127922,0.18589515,118180.0,118170.0,0.34176397]
[1753276128147,0.69512852,118180.0,118170.0,0.14713]
[1753276128362,0.69512852,118180.0,118170.0,0.14505]
[1753276128363,0.68140655,118180.0,118170.0,0.14505]
[1753276128605,0.68140655,118180.0,118170.0,0.32275993]
[1753276128832,0.67294503,118180.0,118170.0,0.14505]
[1753276129050,0.67294503,118180.0,118170.0,0.33122223]
[1753276129299,0.67294503,118180.0,118170.0,0.32275985]
[1753276129515,0.67294503,118180.0,118170.0,0.34268432]
[1753276129696,0.67294503,118180.0,118170.0,0.34814634]
[1753276129936,0.68140648,118180.0,118170.0,0.33968432]
[1753276130149,0.68140648,118180.0,118170.0,0.33122223]
[1753276130369,0.67820648,118180.0,118170.0,0.34176425]
[1753276130599,0.67820648,118180.0,118170.0,0.14505]
[1753276130600,0.67920648,118180.0,118170.0,0.14505]
[1753276130821,0.68240648,118180.0,118170.0,0.32276]
[1753276131237,0.68240648,118180.0,118170.0,0.14505]
[1753276131458,1.09868378,118180.0,118170.0,0.14505]
[1753276131694,1.06688378,118180.0,118170.0,0.14505]
[1753276132160,1.12988378,118180.0,118170.0,0.14593]
[1753276133144,1.12988378,118180.0,118170.0,9e-05]
[1753276133366,1.12988378,118180.0,118170.0,0.14597]
[1753276136096,1.12988378,118180.0,118170.0,0.14577]
[1753276136307,6.17988378,118180.0,118170.0,9e-05]
[1753276136515,6.17988378,118180.0,118170.0,0.14573]
[1753276136516,6.53537057,118180.0,118170.0,0.14573]
[1753276136914,6.17988378,118180.0,118170.0,0.14573]
[1753276137122,6.17888378,118180.0,118170.0,0.14573]
[1753276137331,6.1963328,118180.0,118170.0,0.14573]
[1753276137537,6.1983328,118180.0,118170.0,0.14573]
[1753276137938,6.55181959,118180.0,118170.0,0.14573]
[1753276138164,6.55681959,118180.0,118170.0,0.14573]
[1753276138365,6.21002706,118180.0,118170.0,0.14573]
[1753276139590,6.56551385,118180.0,118170.0,0.14573]
[1753276141438,6.21002706,118180.0,118170.0,0.14573]
[1753276141662,5.89257804,118180.0,118170.0,0.14573]
[1753276141884,1.14257804,118180.0,118170.0,0.14573]
[1753276142355,1.07957804,118180.0,118170.0,0.14573]
[1753276142789,1.14217804,118180.0,118170.0,0.14573]
[1753276143007,0.72586638,118180.0,118170.0,0.38086769]
[1753276143250,0.4343279,118180.0,118170.0,0.21463]
[1753276143470,0.7795279,118180.0,118170.0,9e-05]
[1753276143687,1.58501469,118180.0,118170.0,0.14613]
[1753276143903,1.2295279,118180.0,118170.0,0.14613]
[1753276144563,1.2264779,118180.0,118170.0,0.32384007]
[1753276144744,1.21801645,118180.0,118170.0,0.14613]
[1753276145443,1.21801645,118180.0,118170.0,0.31537769]
[1753276145658,1.21801645,118180.0,118170.0,0.14613]
[1753276146102,1.22106645,118180.0,118170.0,0.14613]
[1753276146969,1.22106645,118180.0,118170.0,0.32384007]
[1753276147234,1.62647776,118180.0,118170.0,0.34275447]
[1753276147454,1.62647776,118180.0,118170.0,0.33429238]
[1753276147671,1.62647776,118180.0,118170.0,0.42628859]
[1753276147672,1.06215535,118180.0,118170.0,0.42628859]
[1753276147883,1.08753941,118180.0,118170.0,0.42628859]
[1753276148092,1.096001,118180.0,118170.0,0.42628859]
[1753276148303,1.26523437,118180.0,118170.0,0.41782671]
[1753276148541,1.24200074,118180.0,118170.0,0.14812]
[1753276148754,1.32952804,118180.0,118170.0,0.14613]
[1753276149171,1.32647804,118180.0,118170.0,0.31736769]
[1753276149387,1.32432804,118180.0,118170.0,0.36810209]
[1753276149613,0.58817156,118180.0,118170.0,0.41742606]
[1753276149840,0.35369426,118180.0,118170.0,0.41742606]
[1753276150079,0.76215528,118180.0,118170.0,0.41742606]
[1753276150523,0.005,118180.0,118170.0,0.41742606]
[1753276150703,0.005,118180.0,118170.0,0.44291379]
[1753276150913,0.002,118180.0,118170.0,0.44291379]
[1753276151153,0.003,118180.0,118170.0,0.52567606]
[1753276151603,0.003,118180.0,118170.0,0.79840058]
[1753276152454,0.001,118180.0,118170.0,0.79840058]
[1753276153405,0.001,118180.0,118170.0,0.44291379]
[1753276158106,0.001,118180.0,118170.0,0.79840058]
[1753276159364,0.001,118180.0,118170.0,0.80752091]
[1753276159564,0.00946102,118180.0,118170.0,0.80752091]
[1753276159770,0.02638363,118180.0,118170.0,0.46218243]
[1753276159981,0.01792225,118180.0,118170.0,0.80752091]
[1753276160208,0.01792225,118180.0,118170.0,0.44291379]
[1753276160419,0.01792225,118180.0,118170.0,0.80752091]
[1753276160573,0.01792218,118180.0,118170.0,0.80752091]
[1753276161144,0.00946102,118180.0,118170.0,0.80752091]
[1753276161355,0.001,118180.0,118170.0,0.80752091]
[1753276162295,0.001,118180.0,118170.0,0.89199821]
[1753276164695,0.03484494,118180.0,118170.0,0.79905903]
[1753276164838,0.03484487,118180.0,118170.0,0.80752091]
[1753276165056,0.04330639,118180.0,118170.0,0.80752091]
[1753276165260,0.03484487,118180.0,118170.0,0.80752091]
[1753276165486,0.04330639,118180.0,118170.0,0.80752091]
[1753276165663,0.02638342,118180.0,118170.0,0.80752091]
[1753276165886,0.0179224,118180.0,118170.0,0.80752091]
[1753276166086,0.001,118180.0,118170.0,0.80752091]
[1753276166310,0.00946109,118180.0,118170.0,0.80752091]
[1753276166740,0.0179224,118180.0,118170.0,0.44291379]
[1753276166941,0.001,118180.0,118170.0,0.44291379]
[1753276167074,0.001,118180.0,118170.0,0.80752091]
[1753276168362,0.20407845,118180.0,118170.0,0.60442485]
[1753276168568,0.02638356,118180.0,118170.0,0.4334917]
[1753276168776,0.03484501,118180.0,118170.0,0.79809882]
[1753276169011,0.02638356,118180.0,118170.0,0.79809882]
[1753276169224,0.00946102,118180.0,118170.0,0.79809882]
[1753276169435,0.01792218,118180.0,118170.0,0.79809882]
[1753276169644,0.01792225,118180.0,118170.0,0.79809882]
[1753276169854,0.01792218,118180.0,118170.0,0.79809882]
[1753276170040,0.01792225,118180.0,118170.0,0.79809882]
[1753276170281,0.01792218,118180.0,118170.0,0.79809882]
[1753276170481,0.001,118180.0,118170.0,0.79809882]
[1753276170790,0.00946109,118180.0,118170.0,0.79809882]
[1753276170913,0.01792232,118180.0,118170.0,0.79809882]
[1753276171126,0.02638377,118180.0,118170.0,0.79809882]
[1753276171574,0.20407866,118180.0,118170.0,0.78955694]
[1753276171769,0.0263837,118180.0,118170.0,0.80648084]
[1753276171980,0.00946109,118180.0,118170.0,0.80648084]
[1753276172181,0.01792232,118180.0,118170.0,0.80648084]
[1753276172391,0.00946102,118180.0,118170.0,0.80648084]
[1753276173319,0.02638356,118180.0,118170.0,0.80648084]
[1753276173528,0.01792218,118180.0,118170.0,0.80648084]
[1753276173736,0.001,118180.0,118170.0,0.80648084]
[1753276175413,0.001,118180.0,118170.0,0.97543544]
[1753276176194,0.001,118180.0,118170.0,0.89095814]
[1753276176577,0.36537927,118200.0,118190.0,0.19460104]
[1753276176806,0.36537927,118200.0,118190.0,0.34135104]
[1753276177014,0.93702197,118200.0,118190.0,0.17768]
[1753276177259,0.53981485,118200.0,118190.0,0.3307008]
[1753276177495,0.54812134,118200.0,118190.0,0.16148183]
[1753276177739,0.54812134,118200.0,118190.0,0.32224]
[1753276177955,0.53966147,118200.0,118190.0,0.31377905]
[1753276178169,0.35676629,118200.0,118190.0,0.69993816]
[1753276178388,0.37368575,118200.0,118190.0,0.70303816]
[1753276178601,0.390606,118200.0,118190.0,0.71149868]
[1753276178814,0.38214577,118200.0,118190.0,0.71149868]
[1753276179230,0.39060586,118200.0,118190.0,0.71149868]
[1753276179433,0.38314577,118200.0,118190.0,0.71149868]
[1753276179644,0.39160593,118200.0,118190.0,0.71149868]
[1753276180065,0.5608113,118200.0,118190.0,0.32997059]
[1753276180310,0.5608113,118200.0,118190.0,0.68611705]
[1753276180311,0.54389163,118200.0,118190.0,0.68611705]
[1753276180535,0.54389163,118200.0,118190.0,0.34689191]
[1753276180726,0.54389163,118200.0,118190.0,0.33843132]
[1753276180935,0.53747161,118200.0,118190.0,0.31633993]
[1753276181141,0.53747161,118200.0,118180.0,0.16922068]
[1753276181142,0.16921905,118190.0,118180.0,0.16922068]
[1753276181347,0.17444905,118190.0,118180.0,0.31354068]
[1753276181567,0.17444905,118190.0,118180.0,0.33046379]
[1753276181764,0.02215125,118190.0,118180.0,0.33892517]
[1753276182016,0.01896125,118190.0,118180.0,0.34945633]
[1753276182202,0.02742205,118190.0,118180.0,0.34945633]
[1753276182430,0.0084603,118190.0,118180.0,0.71716345]
[1753276182862,0.01692068,118190.0,118180.0,0.71716345]
[1753276183067,0.0084603,118190.0,118180.0,0.71716345]
[1753276183274,0.02538127,118190.0,118180.0,0.71716345]
[1753276183492,0.01692068,118190.0,118180.0,0.71716345]
[1753276183837,0.01692068,118190.0,118180.0,0.71816345]
[1753276184467,0.01692068,118190.0,118180.0,0.57384345]
[1753276184468,0.03384193,118190.0,118180.0,0.57384345]
[1753276184676,0.03384193,118190.0,118180.0,0.71760345]
[1753276185038,0.04230273,118190.0,118180.0,0.71760345]
[1753276185236,0.03384179,118190.0,118180.0,0.71760345]
[1753276185456,0.0253812,118190.0,118180.0,0.71760345]
[1753276185688,0.04230252,118190.0,118180.0,0.71760345]
[1753276185896,1.24289141,118200.0,118190.0,0.19460104]
[1753276186097,1.24493141,118200.0,118190.0,0.19667104]
[1753276186502,1.24493141,118200.0,118190.0,0.19667118]
[1753276186712,1.24493141,118200.0,118190.0,0.19460118]
[1753276187124,1.06726645,118200.0,118190.0,0.19460118]
[1753276187403,1.24493134,118200.0,118190.0,0.2030617]
[1753276187618,0.74830649,118200.0,118190.0,0.57819927]
[1753276187801,0.34830649,118200.0,118190.0,0.64259927]
[1753276188007,0.34930649,118200.0,118190.0,0.64259927]
[1753276188439,0.001,118200.0,118190.0,0.64259927]
[1753276188645,0.001,118200.0,118190.0,0.78611927]
[1753276191912,0.001,118200.0,118190.0,0.42151215]
[1753276192114,0.001,118200.0,118190.0,0.78611927]
[1753276192522,0.001,118200.0,118190.0,0.42151215]
[1753276192731,0.01995946,118200.0,118190.0,0.36021215]
[1753276192935,0.04006971,118200.0,118190.0,0.33808118]
[1753276193190,0.2092743,118200.0,118190.0,0.33808118]
[1753276193808,0.2396743,118200.0,118190.0,0.33808118]
[1753276194221,0.23121464,118200.0,118190.0,0.32962066]
[1753276194423,0.20927487,118200.0,118190.0,0.19460132]
[1753276194625,0.35927487,118200.0,118190.0,0.34654191]
[1753276194826,0.16995939,118200.0,118190.0,0.35707236]
[1753276194980,0.16995939,118200.0,118190.0,0.72167948]
[1753276195393,0.15304,118200.0,118190.0,0.72477948]
[1753276195607,0.15945959,118200.0,118190.0,0.72477948]
[1753276196647,0.16791932,118200.0,118190.0,0.72477948]
[1753276196998,0.17637912,118200.0,118190.0,0.72477948]
[1753276197341,0.16791932,118200.0,118190.0,0.72477948]
[1753276197547,0.15945959,118200.0,118190.0,0.36017236]
[1753276197751,0.16791932,118200.0,118190.0,0.72477948]
[1753276198270,0.15945959,118200.0,118190.0,0.72477948]
[1753276198480,0.151,118200.0,118190.0,0.72477948]
[1753276199371,0.151,118200.0,118190.0,0.83995678]
[1753276199652,0.151,118200.0,118190.0,0.87025678]
[1753276199653,0.001,118200.0,118190.0,0.87025678]
[1753276199824,0.001,118200.0,118190.0,0.95473408]
[1753276200145,0.001,118200.0,118190.0,1.3193412]
[1753276200459,0.001,118200.0,118190.0,0.95473408]
[1753276200670,0.001,118200.0,118190.0,0.72677678]